[Event "26th Abu Dhabi Master 2019"]
[Site "Abu Dhabi"]
[Date "2019.08.02"]
[Round "1.32"]
[White "Nitish Belurkar"]
[Black "Praggnanandhaa R"]
[Result "1/2-1/2"]
[ECO "B40"]
[WhiteElo "2302"]
[BlackElo "2540"]
[Annotator "ChessBase"]
[PlyCount "52"]
[EventDate "2019.08.02"]
[EventType "swiss"]
[EventCountry "UAE"]
[SourceTitle "playchess.com"]
[Source "ChessBase"]
[SourceQuality "1"]
[TimeControl "5400+30"]

1. e4 c5 2. Nf3 e6 3. c3 Nf6 4. e5 Nd5 5. d4 cxd4 6. cxd4 d6 7. a3 Bd7 8. Bd3 Bc6 9. O-O Nd7 10. b4 a6 11. Nbd2 Nf4 12. Be4 d5 13. Bb1 Bb5 14. Re1 Nd3 15. Re3 Nxc1 16. Qxc1 a5 17. bxa5 Rxa5 18. Rc3 Nb6 19. Bd3 Bc6 20. Rb1 Nd7 21. a4 Rxa4 22. Bb5 Ra7 23. Bxc6 bxc6 24. Rxc6 Ba3 25. Qc2 O-O 26. h3 h6 1/2-1/2

[Event "26th Abu Dhabi Master 2019"]
[Site "Abu Dhabi"]
[Date "2019.08.02"]
[Round "1.33"]
[White "Santos Ruiz, Miguel"]
[Black "Siva Mahadevan"]
[Result "1-0"]
[ECO "A48"]
[WhiteElo "2567"]
[BlackElo "2270"]
[Annotator "ChessBase"]
[PlyCount "79"]
[EventDate "2019.08.02"]
[EventType "swiss"]
[EventCountry "UAE"]
[SourceTitle "playchess.com"]
[Source "ChessBase"]
[SourceQuality "1"]
[TimeControl "5400+30"]

1. d4 Nf6 2. Nf3 g6 3. c4 Bg7 4. e3 O-O 5. Be2 d6 6. Nc3 Nbd7 7. O-O e5 8. Qc2 Re8 9. h3 e4 10. Nd2 Qe7 11. b4 c6 12. Bb2 Nf8 13. d5 h5 14. dxc6 bxc6 15. Nb3 d5 16. cxd5 cxd5 17. Nb5 Ne6 18. a3 Bd7 19. Rfc1 h4 20. Qd1 Reb8 21. Qf1 a6 22. N5d4 a5 23. Nxe6 Qxe6 24. b5 a4 25. Nc5 Qd6 26. Nxd7 Nxd7 27. Rc6 Qe7 28. Bxg7 Kxg7 29. Qd1 Qe5 30. Rac1 Nb6 31. Qd2 Nc4 32. Qb4 Nb6 33. Qc5 Qb2 34. Rc2 Qb1+ 35. Kh2 Nc4 36. Qd4+ Kh6 37. Qxd5 Qxc2 38. Qxf7 Rg8 39. Qf4+ Kh7 40. Qxh4+ 1-0

[Event "26th Abu Dhabi Master 2019"]
[Site "Abu Dhabi"]
[Date "2019.08.02"]
[Round "1.34"]
[White "Priyanka Nutakki"]
[Black "Istratescu, Andrei"]
[Result "0-1"]
[ECO "A22"]
[WhiteElo "2293"]
[BlackElo "2555"]
[Annotator "ChessBase"]
[PlyCount "82"]
[EventDate "2019.08.02"]
[EventType "swiss"]
[EventCountry "UAE"]
[SourceTitle "playchess.com"]
[Source "ChessBase"]
[SourceQuality "1"]
[TimeControl "5400+30"]

1. c4 {[%emt 0:00:00]} e5 {[%emt 0:02:36]} 2. Nc3 {[%emt 0:00:00]} Nf6 {[%emt 0:01:44]} 3. Nf3 {[%emt 0:00:17]} d6 {[%emt 0:04:03]} 4. g3 {[%emt 0:03:34]} c6 {[%emt 0:03:29]} 5. d3 {[%emt 0:01:49]} Nbd7 {[%emt 0:02:39]} 6. Bg2 {[%emt 0:00:39]} g6 {[%emt 0:00:17]} 7. O-O {[%emt 0:00:35]} Bg7 {[%emt 0:00:03]} 8. Rb1 {[%emt 0:01:20]} a5 {[%emt 0:06:09]} 9. a3 {[%emt 0:01:06]} O-O {[%emt 0:07:01]} 10. b4 {[%emt 0:00:56]} axb4 {[%emt 0:01:30]} 11. axb4 {[%emt 0:00:06]} d5 {[%emt 0:03:10]} 12. cxd5 {[%emt 0:06:36]} cxd5 {[%emt 0:08:44]} 13. d4 {[%emt 0:17:08]} e4 {[%emt 0:04:27]} 14. Ne5 {[%emt 0:00:40]} Nb6 {[%emt 0:01:11]} 15. f3 {[%emt 0:05:27]} Bf5 {[%emt 0:04:52]} 16. g4 {[%emt 0:06:13]} exf3 {[%emt 0:00:33]} 17. gxf5 {[%emt 0:00:06]} fxg2 {[%emt 0:00:03]} 18. Kxg2 {[%emt 0:00:08]} Nfd7 {[%emt 0:01:51]} 19. Nf3 {[%emt 0:07:32]} Qf6 {[%emt 0:03:16]} 20. Qd3 {[%emt 0:09:20]} Rfc8 {[%emt 0:04:03]} 21. Bg5 {[%emt 0:02:54]} Qxf5 {[%emt 0:02:59]} 22. Qxf5 {[%emt 0:00:07]} gxf5 {[%emt 0:00:01]} 23. Rb3 {[%emt 0:05:51]} Rc4 {[%emt 0:02:11]} 24. e3 {[%emt 0:02:12]} Bf8 {[%emt 0:02:03]} 25. b5 {[%emt 0:05:31]} Rb4 {[%emt 0:04:26]} 26. Rfb1 {[%emt 0:02:14]} Rxb3 {[%emt 0:00:19]} 27. Rxb3 {[%emt 0:00:02]} f6 {[%emt 0:00:34]} 28. Bf4 {[%emt 0:00:42]} Kf7 {[%emt 0:00:34]} 29. Nh4 {[%emt 0:04:31]} Ke6 {[%emt 0:00:39]} 30. Rb2 {[%emt 0:07:08]} Nc4 {[%emt 0:04:46]} 31. Rc2 {[%emt 0:04:05]} Rc8 {[%emt 0:03:22]} 32. Nd1 {[%emt 0:03:42]} Ndb6 {[%emt 0:00:56]} 33. Rf2 {[%emt 0:00:20]} Ra8 {[%emt 0:01:26]} 34. Nb2 {[%emt 0:03:14]} Ra3 {[%emt 0:06:02]} 35. Kg1 {[%emt 0:00:51]} Rb3 {[%emt 0:01:43]} 36. Nxc4 {[%emt 0:00:14]} dxc4 {[%emt 0:00:22]} 37. Rc2 {[%emt 0:00:33]} c3 {[%emt 0:01:08]} 38. Kf1 {[%emt 0:00:27]} Nd5 {[%emt 0:00:17]} 39. Ng2 {[%emt 0:00:06]} Rxb5 {[%emt 0:01:47]} 40. Ke2 {[%emt 0:00:42]} Rb2 {[%emt 0:00:54]} 41. Kd1 {[%emt 0:00:03]} b5 {[%emt 0:00:31]} 0-1

[Event "26th Abu Dhabi Master 2019"]
[Site "Abu Dhabi"]
[Date "2019.08.02"]
[Round "1.35"]
[White "Shevchenko, Kirill"]
[Black "Wagh Suyog"]
[Result "1-0"]
[ECO "D15"]
[WhiteElo "2536"]
[BlackElo "2242"]
[Annotator "ChessBase"]
[PlyCount "65"]
[EventDate "2019.08.02"]
[EventType "swiss"]
[EventCountry "UAE"]
[SourceTitle "playchess.com"]
[Source "ChessBase"]
[SourceQuality "1"]
[TimeControl "5400+30"]

1. d4 d5 2. c4 c6 3. Nc3 Nf6 4. Nf3 a6 5. g3 g6 6. Bg2 Bg7 7. O-O O-O 8. Ne5 e6 9. Qb3 Nbd7 10. Nxd7 Nxd7 11. Rd1 b5 12. cxd5 cxd5 13. e4 Nb6 14. e5 Bd7 15. h4 Bc6 16. Ne2 a5 17. Bg5 Qd7 18. Qe3 Nc4 19. Qc1 b4 20. Nf4 h6 21. Bf6 Bb5 22. Nd3 Rfc8 23. Qf4 Bf8 24. Nc5 Rxc5 25. dxc5 Nxb2 26. Rd4 Kh7 27. h5 Nd3 28. Qe3 Nxc5 29. hxg6+ fxg6 30. Rh4 Ne4 31. Bxe4 dxe4 32. Bg5 h5 33. Qxe4 1-0

[Event "26th Abu Dhabi Master 2019"]
[Site "Abu Dhabi"]
[Date "2019.08.02"]
[Round "1.36"]
[White "Kushagra Mohan"]
[Black "Aryan Chopra"]
[Result "1/2-1/2"]
[ECO "B90"]
[WhiteElo "2250"]
[BlackElo "2553"]
[Annotator "ChessBase"]
[PlyCount "88"]
[EventDate "2019.08.02"]
[EventType "swiss"]
[EventCountry "UAE"]
[SourceTitle "playchess.com"]
[Source "ChessBase"]
[SourceQuality "1"]
[TimeControl "5400+30"]

1. e4 {[%emt 0:00:00]} c5 {[%emt 0:00:02]} 2. Nf3 {[%emt 0:00:08]} d6 {[%emt 0:00:09]} 3. d4 {[%emt 0:00:04]} cxd4 {[%emt 0:00:03]} 4. Nxd4 {[%emt 0:00:04]} Nf6 {[%emt 0:00:04]} 5. Nc3 {[%emt 0:00:04]} a6 {[%emt 0:00:02]} 6. f3 {[%emt 0:00:12]} e5 {[%emt 0:00:10]} 7. Nb3 {[%emt 0:00:04]} Be6 {[%emt 0:00:14]} 8. Be3 {[%emt 0:00:06]} Be7 {[%emt 0:01:06]} 9. Qd2 {[%emt 0:00:09]} O-O {[%emt 0:00:51]} 10. O-O-O {[%emt 0:00:15]} Nbd7 {[%emt 0:00:02]} 11. g4 {[%emt 0:00:06]} b5 {[%emt 0:00:07]} 12. g5 {[%emt 0:00:04]} Nh5 {[%emt 0:00:03]} 13. Kb1 {[%emt 0:00:35]} Nb6 {[%emt 0:03:23]} 14. Nd5 {[%emt 0:00:31]} Nxd5 {[%emt 0:00:55]} 15. exd5 {[%emt 0:00:04]} Bf5 {[%emt 0:00:31]} 16. Na5 {[%emt 0:00:38]} f6 {[%emt 0:01:04]} 17. Nc6 {[%emt 0:04:00]} Qd7 {[%emt 0:00:08]} 18. h4 {[%emt 0:01:19]} Ng3 {[%emt 0:00:54]} 19. Rh2 {[%emt 0:02:13]} Nxf1 {[%emt 0:00:50]} 20. Rxf1 {[%emt 0:00:02]} fxg5 {[%emt 0:00:19]} 21. hxg5 {[%emt 0:00:52]} Bg6 {[%emt 0:00:30]} 22. b3 {[%emt 0:04:05]} Rae8 {[%emt 0:00:44]} 23. Rhf2 {[%emt 0:02:02]} Bd8 {[%emt 0:03:45]} 24. Kb2 {[%emt 0:09:16]} Rf5 {[%emt 0:08:09]} 25. Ra1 {[%emt 0:04:22]} Qf7 {[%emt 0:07:54]} 26. a4 {[%emt 0:05:17]} b4 {[%emt 0:17:14]} 27. a5 {[%emt 0:04:32]} e4 {[%emt 0:03:12]} 28. fxe4 {[%emt 0:03:14]} Rxf2 {[%emt 0:00:32]} 29. Qxf2 {[%emt 0:22:08]} Qxf2 {[%emt 0:01:10]} 30. Bxf2 {[%emt 0:03:04]} Bxg5 {[%emt 0:04:00]} 31. Nxb4 {[%emt 0:14:40]} Rxe4 {[%emt 0:15:34]} 32. Ka3 {[%emt 0:02:27]} Bd2 {[%emt 0:13:09]} 33. Nxa6 {[%emt 0:01:04]} Bxa5 {[%emt 0:04:56]} 34. b4 {[%emt 0:01:09]} Bd8 {[%emt 0:00:00]} 35. b5 {[%emt 0:01:52]} Rf4 {[%emt 0:09:23]} 36. b6 {[%emt 0:04:05]} Rf3+ {[%emt 0:00:06]} 37. c3 {[%emt 0:06:32]} Rxc3+ {[%emt 0:00:08]} 38. Kb4 {[%emt 0:00:04]} Rc2 {[%emt 0:01:03]} 39. Bd4 {[%emt 0:01:24]} Bxb6 {[%emt 0:01:40]} 40. Bxb6 {[%emt 0:00:02]} Be4 {[%emt 0:02:04]} 41. Nc7 {[%emt 0:01:26]} Rb2+ {[%emt 0:01:49]} 42. Ka5 {[%emt 0:00:38]} Rd2 {[%emt 0:00:47]} 43. Kb4 {[%emt 0:04:48]} Rb2+ {[%emt 0:00:13]} 44. Ka5 {[%emt 0:00:03]} Rd2 {[%emt 0:00:50]} 1/2-1/2

[Event "26th Abu Dhabi Master 2019"]
[Site "Abu Dhabi"]
[Date "2019.08.02"]
[Round "1.37"]
[White "Sengupta, Deep"]
[Black "Paramzina, Anastasya"]
[Result "1-0"]
[ECO "B23"]
[WhiteElo "2558"]
[BlackElo "2300"]
[Annotator "ChessBase"]
[PlyCount "59"]
[EventDate "2019.08.02"]
[EventType "swiss"]
[EventCountry "UAE"]
[SourceTitle "playchess.com"]
[Source "ChessBase"]
[SourceQuality "1"]
[TimeControl "5400+30"]

1. e4 c5 2. Nc3 d6 3. Bb5+ Bd7 4. a4 g6 5. f4 Bg7 6. Nf3 Nc6 7. O-O a6 8. Bc4 e6 9. d3 Nf6 10. Kh1 O-O 11. Be3 Ng4 12. Bg1 f5 13. Ng5 Qf6 14. h3 Nh6 15. Qd2 Nf7 16. Nf3 Nd4 17. Nxd4 cxd4 18. Ne2 e5 19. c3 fxe4 20. fxe5 Qxe5 21. Bxd4 Qe7 22. dxe4 Qxe4 23. Ng3 Qh4 24. Rxf7 Rxf7 25. Bxf7+ Kxf7 26. Qf2+ Kg8 27. Bxg7 Bxh3 28. Bf6 Qh6 29. gxh3 Qxh3+ 30. Qh2 1-0

[Event "26th Abu Dhabi Master 2019"]
[Site "Abu Dhabi"]
[Date "2019.08.02"]
[Round "1.38"]
[White "Bartel, Marta"]
[Black "Sanal, Vahap"]
[Result "0-1"]
[ECO "E12"]
[WhiteElo "2260"]
[BlackElo "2520"]
[Annotator "ChessBase"]
[PlyCount "70"]
[EventDate "2019.08.02"]
[EventType "swiss"]
[EventCountry "UAE"]
[SourceTitle "playchess.com"]
[Source "ChessBase"]
[SourceQuality "1"]
[TimeControl "5400+30"]

1. d4 Nf6 2. c4 e6 3. Nf3 b6 4. a3 Bb7 5. Nc3 d5 6. cxd5 Nxd5 7. Qc2 Be7 8. e4 Nxc3 9. bxc3 O-O 10. Bd3 c5 11. O-O Nd7 12. Qe2 Qc7 13. a4 Rfd8 14. Bd2 c4 15. Bc2 a6 16. Rab1 Rab8 17. g3 f6 18. Nh4 Qc6 19. Rbe1 b5 20. axb5 axb5 21. d5 exd5 22. Nf5 Bf8 23. Nd4 Qb6 24. exd5 Ne5 25. f4 Nd3 26. Bxd3 cxd3 27. Qe6+ Qxe6 28. dxe6 Bc5 29. Be3 b4 30. e7 Bxe7 31. cxb4 Bxb4 32. Rd1 Be4 33. Nb3 d2 34. Rxd2 Bxd2 35. Nxd2 Ba8 0-1

[Event "26th Abu Dhabi Master 2019"]
[Site "Abu Dhabi"]
[Date "2019.08.02"]
[Round "1.39"]
[White "Xu, Yi"]
[Black "Aakanksha Hagawane"]
[Result "1-0"]
[ECO "C11"]
[WhiteElo "2524"]
[BlackElo "2246"]
[Annotator "ChessBase"]
[PlyCount "63"]
[EventDate "2019.08.02"]
[EventType "swiss"]
[EventCountry "UAE"]
[SourceTitle "playchess.com"]
[Source "ChessBase"]
[SourceQuality "1"]
[TimeControl "5400+30"]

1. e4 {[%emt 0:00:00]} e6 {[%emt 0:00:13]} 2. d4 {[%emt 0:00:00]} d5 {[%emt 0:00:18]} 3. Nc3 {[%emt 0:00:00]} Nf6 {[%emt 0:00:05]} 4. e5 {[%emt 0:00:01]} Nfd7 {[%emt 0:00:05]} 5. f4 {[%emt 0:00:05]} c5 {[%emt 0:00:07]} 6. Nf3 {[%emt 0:00:05]} Nc6 {[%emt 0:00:03]} 7. Be3 {[%emt 0:00:07]} cxd4 {[%emt 0:02:23]} 8. Nxd4 {[%emt 0:00:05]} Bc5 {[%emt 0:00:20]} 9. Qd2 {[%emt 0:00:31]} Bxd4 {[%emt 0:11:27]} 10. Bxd4 {[%emt 0:00:08]} Qa5 {[%emt 0:00:07]} 11. O-O-O {[%emt 0:03:49]} Rb8 {[%emt 0:00:17]} 12. f5 {[%emt 0:14:42]} Nxd4 {[%emt 0:28:20]} 13. Qxd4 {[%emt 0:00:24]} O-O {[%emt 0:01:18]} 14. f6 {[%emt 0:09:26]} Qc5 {[%emt 0:09:03]} 15. fxg7 {[%emt 0:14:02]} Kxg7 {[%emt 0:03:00]} 16. Qf4 {[%emt 0:00:50]} d4 {[%emt 0:08:23]} 17. Rxd4 {[%emt 0:03:21]} Qxe5 {[%emt 0:03:40]} 18. Qf2 {[%emt 0:01:04]} Qg5+ {[%emt 0:06:22]} 19. Kb1 {[%emt 0:00:26]} Ne5 {[%emt 0:00:37]} 20. h4 {[%emt 0:02:58]} Qf6 {[%emt 0:02:34]} 21. Qg3+ {[%emt 0:06:07]} Kh8 {[%emt 0:00:05]} 22. Re4 {[%emt 0:00:17]} Nc6 {[%emt 0:00:06]} 23. Bd3 {[%emt 0:00:59]} e5 {[%emt 0:02:15]} 24. Ree1 {[%emt 0:04:41]} Qg7 {[%emt 0:04:55]} 25. Qe3 {[%emt 0:00:08]} Be6 {[%emt 0:00:52]} 26. Rhf1 {[%emt 0:00:35]} f5 {[%emt 0:00:45]} 27. Bb5 {[%emt 0:00:52]} e4 {[%emt 0:02:04]} 28. Rd1 {[%emt 0:00:59]} Rbd8 {[%emt 0:03:59]} 29. Bxc6 {[%emt 0:02:23]} bxc6 {[%emt 0:00:02]} 30. Qc5 {[%emt 0:00:34]} Bd5 {[%emt 0:01:52]} 31. Ne2 {[%emt 0:02:19]} Qc7 {[%emt 0:08:31]} 32. Rxd5 {[%emt 0:00:24]} 1-0

[Event "26th Abu Dhabi Master 2019"]
[Site "Abu Dhabi"]
[Date "2019.08.02"]
[Round "1.40"]
[White "Deshpande, Aniruddha"]
[Black "Nguyen, Anh Khoi"]
[Result "1-0"]
[ECO "A62"]
[WhiteElo "2234"]
[BlackElo "2516"]
[Annotator "ChessBase"]
[PlyCount "65"]
[EventDate "2019.08.02"]
[EventType "swiss"]
[EventCountry "UAE"]
[SourceTitle "playchess.com"]
[Source "ChessBase"]
[SourceQuality "1"]
[TimeControl "5400+30"]

1. d4 Nf6 2. c4 e6 3. g3 {[%emt 0:00:57]} c5 {[%emt 0:00:27]} 4. d5 {[%emt 0:00:06]} exd5 {[%emt 0:00:05]} 5. cxd5 {[%emt 0:00:05]} d6 {[%emt 0:00:07]} 6. Nc3 {[%emt 0:00:06]} g6 {[%emt 0:00:07]} 7. Bg2 {[%emt 0:00:11]} Bg7 {[%emt 0:00:06]} 8. Nf3 {[%emt 0:00:15]} O-O {[%emt 0:00:12]} 9. O-O {[%emt 0:00:12]} Re8 {[%emt 0:00:11]} 10. Re1 {[%emt 0:02:15]} a6 {[%emt 0:00:50]} 11. a4 {[%emt 0:00:26]} Nbd7 {[%emt 0:00:17]} 12. e4 {[%emt 0:01:46]} Ng4 {[%emt 0:00:39]} 13. Nd2 {[%emt 0:00:31]} Nge5 {[%emt 0:00:09]} 14. Bf1 {[%emt 0:00:13]} g5 {[%emt 0:00:13]} 15. f4 gxf4 {[%emt 0:02:29]} 16. gxf4 {[%emt 0:00:42]} Ng6 {[%emt 0:00:53]} 17. Nf3 {[%emt 0:00:08]} Nf6 {[%emt 0:14:57]} 18. f5 {[%emt 0:03:47]} Ne5 {[%emt 0:00:14]} 19. Nxe5 {[%emt 0:08:27]} Rxe5 {[%emt 0:00:08]} 20. Bf4 {[%emt 0:00:27]} Qe7 {[%emt 0:05:06]} 21. Qf3 {[%emt 0:04:39]} Bd7 {[%emt 0:04:36]} 22. Re2 {[%emt 0:04:21]} Kh8 {[%emt 0:04:45]} 23. Bxe5 {[%emt 0:15:06]} Qxe5 {[%emt 0:00:11]} 24. Rg2 {[%emt 0:00:12]} Re8 {[%emt 0:03:57]} 25. Bd3 {[%emt 0:08:12]} c4 {[%emt 0:15:36]} 26. Bc2 {[%emt 0:00:25]} b5 {[%emt 0:02:23]} 27. axb5 {[%emt 0:11:15]} axb5 {[%emt 0:01:46]} 28. Kh1 {[%emt 0:00:08]} Bf8 {[%emt 0:16:50]} 29. Rag1 {[%emt 0:03:39]} Ra8 {[%emt 0:05:32]} 30. Qh5 {[%emt 0:04:22]} Be8 {[%emt 0:08:40]} 31. Qg5 {[%emt 0:20:34]} h6 {[%emt 0:00:11]} 32. Qxf6+ {[%emt 0:04:16]} Qxf6 {[%emt 0:08:20]} 33. Rg7 {[%emt 0:01:34]} 1-0

[Event "26th Abu Dhabi Master 2019"]
[Site "Abu Dhabi"]
[Date "2019.08.02"]
[Round "1.41"]
[White "Iniyan, P."]
[Black "Pujari, Rucha"]
[Result "1-0"]
[ECO "D30"]
[WhiteElo "2524"]
[BlackElo "2268"]
[Annotator "ChessBase"]
[PlyCount "33"]
[EventDate "2019.08.02"]
[EventType "swiss"]
[EventCountry "UAE"]
[SourceTitle "playchess.com"]
[Source "ChessBase"]
[SourceQuality "1"]
[TimeControl "5400+30"]

1. d4 {[%emt 0:03:46]} d5 {[%emt 0:00:00]} 2. c4 {[%emt 0:00:24]} e6 {[%emt 0:00:11]} 3. Nf3 {[%emt 0:00:06]} Nf6 {[%emt 0:00:44]} 4. Bg5 {[%emt 0:00:05]} Be7 {[%emt 0:00:22]} 5. e3 {[%emt 0:00:05]} h6 {[%emt 0:01:51]} 6. Bh4 {[%emt 0:00:06]} g5 {[%emt 0:06:09]} 7. Bg3 {[%emt 0:00:10]} Ne4 {[%emt 0:00:03]} 8. Nc3 {[%emt 0:04:13]} h5 {[%emt 0:01:57]} 9. Qc2 {[%emt 0:10:46]} f5 {[%emt 0:30:28]} 10. cxd5 {[%emt 0:04:43]} exd5 {[%emt 0:08:34]} 11. Nxe4 {[%emt 0:00:18]} fxe4 {[%emt 0:00:23]} 12. Bxc7 {[%emt 0:00:21]} Bb4+ {[%emt 0:00:21]} 13. Kd1 {[%emt 0:01:18]} Qe7 {[%emt 0:04:16]} 14. Bd6 {[%emt 0:00:11]} Qxd6 {[%emt 0:09:41]} 15. Qxc8+ {[%emt 0:00:08]} Ke7 {[%emt 0:00:18]} 16. Qxh8 {[%emt 0:00:40]} exf3 {[%emt 0:00:13]} 17. Qg7+ {[%emt 0:00:22]} 1-0

[Event "26th Abu Dhabi Master 2019"]
[Site "Abu Dhabi"]
[Date "2019.08.02"]
[Round "1.42"]
[White "Ayyad, Husain"]
[Black "Bajarani, Ulvi"]
[Result "0-1"]
[ECO "B53"]
[WhiteElo "2231"]
[BlackElo "2485"]
[Annotator "ChessBase"]
[PlyCount "112"]
[EventDate "2019.08.02"]
[EventType "swiss"]
[EventCountry "UAE"]
[SourceTitle "playchess.com"]
[Source "ChessBase"]
[SourceQuality "1"]
[TimeControl "5400+30"]

1. e4 {[%emt 0:09:29]} c5 {[%emt 0:00:00]} 2. Nf3 {[%emt 0:00:03]} d6 {[%emt 0:00:00]} 3. d4 {[%emt 0:00:07]} cxd4 {[%emt 0:00:00]} 4. Qxd4 {[%emt 0:00:05]} a6 {[%emt 0:00:00]} 5. h3 {[%emt 0:00:07]} Nc6 {[%emt 0:00:09]} 6. Qe3 {[%emt 0:00:02]} g6 {[%emt 0:00:21]} 7. Be2 {[%emt 0:00:21]} Bg7 {[%emt 0:00:15]} 8. O-O {[%emt 0:00:08]} Nf6 {[%emt 0:00:21]} 9. c4 {[%emt 0:04:27]} O-O {[%emt 0:00:45]} 10. Nc3 {[%emt 0:00:49]} Nd7 {[%emt 0:01:24]} 11. b3 {[%emt 0:05:37]} Nde5 {[%emt 0:06:22]} 12. Nxe5 {[%emt 0:06:52]} Bxe5 {[%emt 0:00:23]} 13. Rd1 {[%emt 0:01:17]} b5 {[%emt 0:03:21]} 14. Rb1 {[%emt 0:03:20]} bxc4 {[%emt 0:06:04]} 15. Bxc4 {[%emt 0:06:55]} Be6 {[%emt 0:05:07]} 16. Nd5 {[%emt 0:16:30]} Bg7 {[%emt 0:02:18]} 17. Bb2 {[%emt 0:06:09]} Bxb2 {[%emt 0:02:37]} 18. Rxb2 {[%emt 0:00:08]} Ne5 {[%emt 0:00:13]} 19. Be2 {[%emt 0:02:08]} Bxd5 {[%emt 0:01:34]} 20. Rxd5 {[%emt 0:00:56]} Qc7 {[%emt 0:00:33]} 21. f4 {[%emt 0:03:48]} Nd7 {[%emt 0:00:13]} 22. e5 {[%emt 0:06:30]} dxe5 {[%emt 0:15:01]} 23. fxe5 {[%emt 0:00:16]} e6 {[%emt 0:04:41]} 24. Rd6 {[%emt 0:01:02]} a5 {[%emt 0:02:22]} 25. Qd4 {[%emt 0:05:37]} Nb8 {[%emt 0:05:20]} 26. Bb5 {[%emt 0:02:26]} Ra7 {[%emt 0:01:31]} 27. Rd2 {[%emt 0:00:56]} Kg7 {[%emt 0:00:23]} 28. a4 {[%emt 0:11:21]} Rb7 {[%emt 0:01:44]} 29. Kh2 {[%emt 0:00:11]} Rc8 {[%emt 0:01:35]} 30. Qh4 {[%emt 0:04:32]} Qe7 {[%emt 0:02:32]} 31. Qxe7 {[%emt 0:00:12]} Rxe7 {[%emt 0:00:07]} 32. Rd8 {[%emt 0:00:04]} Rec7 {[%emt 0:00:41]} 33. Kg3 {[%emt 0:01:11]} Rxd8 {[%emt 0:00:40]} 34. Rxd8 {[%emt 0:00:04]} Nc6 {[%emt 0:00:06]} 35. Bxc6 {[%emt 0:00:59]} Rxc6 {[%emt 0:00:29]} 36. Rb8 {[%emt 0:00:01]} g5 {[%emt 0:00:48]} 37. Rb5 {[%emt 0:00:03]} Rc3+ {[%emt 0:00:18]} 38. Kf2 {[%emt 0:00:44]} Kg6 {[%emt 0:00:09]} 39. Rxa5 {[%emt 0:00:53]} Rxb3 {[%emt 0:00:09]} 40. Ra7 {[%emt 0:00:03]} h5 {[%emt 0:00:36]} 41. Ra8 {[%emt 0:01:23]} h4 {[%emt 0:00:40]} 42. Ra7 {[%emt 0:01:59]} Rc3 {[%emt 0:00:37]} 43. Ra5 {[%emt 0:00:19]} Rc4 {[%emt 0:00:26]} 44. Kf3 {[%emt 0:00:36]} Kf5 {[%emt 0:00:13]} 45. Ra7 {[%emt 0:00:02]} Rf4+ {[%emt 0:00:18]} 46. Ke3 {[%emt 0:01:08]} Kxe5 {[%emt 0:00:08]} 47. a5 {[%emt 0:00:13]} f5 {[%emt 0:00:25]} 48. a6 {[%emt 0:00:03]} Ra4 {[%emt 0:00:10]} 49. Ra8 {[%emt 0:00:57]} Ra3+ {[%emt 0:00:22]} 50. Kf2 {[%emt 0:00:54]} Kf4 {[%emt 0:00:10]} 51. a7 {[%emt 0:00:48]} Ra2+ {[%emt 0:00:06]} 52. Kf1 {[%emt 0:00:01]} e5 {[%emt 0:00:13]} 53. Ke1 {[%emt 0:00:08]} Ke3 {[%emt 0:00:24]} 54. Kd1 {[%emt 0:00:00]} e4 {[%emt 0:00:17]} 55. Kc1 {[%emt 0:00:25]} f4 {[%emt 0:00:15]} 56. Kd1 {[%emt 0:00:10]} Kf2 {[%emt 0:00:12]} 0-1

[Event "26th Abu Dhabi Master 2019"]
[Site "Abu Dhabi"]
[Date "2019.08.02"]
[Round "1.43"]
[White "Kiriakov, Petr"]
[Black "Srihari L R"]
[Result "1-0"]
[ECO "A57"]
[WhiteElo "2516"]
[BlackElo "2227"]
[Annotator "ChessBase"]
[PlyCount "41"]
[EventDate "2019.08.02"]
[EventType "swiss"]
[EventCountry "UAE"]
[SourceTitle "playchess.com"]
[Source "ChessBase"]
[SourceQuality "1"]
[TimeControl "5400+30"]

1. d4 {[%emt 0:00:23]} Nf6 {[%emt 0:00:26]} 2. c4 {[%emt 0:00:41]} c5 {[%emt 0:00:28]} 3. d5 {[%emt 0:00:14]} b5 {[%emt 0:00:30]} 4. cxb5 {[%emt 0:00:08]} e6 {[%emt 0:00:24]} 5. Nc3 {[%emt 0:05:14]} exd5 {[%emt 0:00:34]} 6. Nxd5 {[%emt 0:00:09]} Bb7 {[%emt 0:00:06]} 7. e4 {[%emt 0:03:45]} a6 {[%emt 0:07:50]} 8. bxa6 {[%emt 0:05:22]} Nxa6 {[%emt 0:18:09]} 9. Bc4 {[%emt 0:08:41]} Bd6 {[%emt 0:13:07]} 10. Nf3 {[%emt 0:05:20]} Nxe4 {[%emt 0:08:38]} 11. O-O {[%emt 0:03:24]} O-O {[%emt 0:05:08]} 12. Re1 {[%emt 0:02:00]} Re8 {[%emt 0:04:20]} 13. Bg5 {[%emt 0:07:50]} Qa5 {[%emt 0:13:13]} 14. Be7 {[%emt 0:06:25]} Bxe7 {[%emt 0:12:50]} 15. Rxe4 {[%emt 0:00:23]} Bf8 {[%emt 0:01:42]} 16. Ne5 {[%emt 0:07:57]} Nc7 {[%emt 0:09:49]} 17. Qh5 {[%emt 0:02:21]} Bxd5 {[%emt 0:00:43]} 18. Qxf7+ {[%emt 0:00:24]} Bxf7 {[%emt 0:00:18]} 19. Bxf7+ {[%emt 0:00:04]} Kh8 {[%emt 0:00:07]} 20. Ng6+ {[%emt 0:00:04]} hxg6 {[%emt 0:00:05]} 21. Rh4# 1-0

[Event "26th Abu Dhabi Master 2019"]
[Site "Abu Dhabi"]
[Date "2019.08.02"]
[Round "1.44"]
[White "Senthil Maran K"]
[Black "Kuybokarov, Temur"]
[Result "1-0"]
[ECO "D38"]
[WhiteElo "2222"]
[BlackElo "2511"]
[Annotator "ChessBase"]
[PlyCount "121"]
[EventDate "2019.08.02"]
[EventType "swiss"]
[EventCountry "UAE"]
[SourceTitle "playchess.com"]
[Source "ChessBase"]
[SourceQuality "1"]
[TimeControl "5400+30"]

1. d4 Nf6 2. Nf3 d5 3. c4 e6 4. Nc3 Bb4 5. Qa4+ Nc6 6. e3 O-O 7. Bd2 dxc4 8. Bxc4 Bd6 9. O-O a6 10. a3 e5 11. d5 e4 12. Nxe4 Nxe4 13. dxc6 Nxd2 14. Nxd2 Bxh2+ 15. Kxh2 Qxd2 16. cxb7 Qd6+ 17. Kg1 Bxb7 18. Qb4 Qc6 19. f3 Rab8 20. Rac1 Qf6 21. Qc3 Qg5 22. Be2 Rbe8 23. e4 Kh8 24. Qd4 Qf4 25. Rc3 f5 26. Rfc1 Rf7 27. Qe3 Qd6 28. Qa7 Qb6+ 29. Qxb6 cxb6 30. Rc7 Rfe7 31. exf5 h6 32. Bd3 Kg8 33. Kf2 Kf7 34. Be4 Bxe4 35. fxe4 g6 36. fxg6+ Kf8 37. Rxe7 Rxe7 38. Rc6 Rxe4 39. Rxb6 a5 40. Rb5 Rc4 41. Rxa5 Rc2+ 42. Kf3 Rxb2 43. Ra7 Ra2 44. a4 Kg8 45. g3 Ra1 46. Kg4 Ra2 47. a5 Ra1 48. a6 Ra5 49. Kf4 Ra3 50. Ke5 Ra1 51. g7 Ra3 52. g4 Ra4 53. Kf5 Kh7 54. g5 hxg5 55. g8=Q+ Kxg8 56. Kg6 Kf8 57. Ra8+ Ke7 58. a7 g4 59. Rh8 Ra6+ 60. Kf5 Kf7 61. a8=Q 1-0